fUSD/lending_fUSD_20241121
["ID","MTS","AMOUNT","RATE_DAILY","PERIOD"]
[342867256,1732189865254,-6479.87,0.00041369,18]
[342867257,1732189865265,-631.6105252,0.00041369,18]
[342867258,1732189865274,-500.0,0.00041369,18]
[342867259,1732189865283,-6078.68,0.00041369,18]
[342867260,1732189865293,-514.73,0.00041369,18]
[342867261,1732189865303,-500.0,0.00041369,18]
[342867262,1732189865312,-508.70474361,0.00041369,18]
[342867263,1732189865321,-3127.55,0.00041369,18]
[342867264,1732189865331,-2399.11,0.00041369,18]
[342867265,1732189865342,-500.0,0.00041369,18]
[342867266,1732189865351,-500.0,0.00041369,18]
[342867267,1732189865360,-2076.6,0.00041369,18]
[342867268,1732189865369,-500.0,0.00041369,18]
[342867269,1732189865378,-500.0,0.00041369,18]
[342867270,1732189865387,-500.0,0.00041369,18]
[342867271,1732189865398,-510.08,0.00041369,18]
[342867272,1732189865409,-1293.59,0.00041369,18]
[342867273,1732189865419,-500.0,0.00041369,18]
[342867274,1732189865428,-500.0,0.00041369,18]
[342867275,1732189865438,-500.0,0.00041369,18]
[342867276,1732189865448,-3007.44,0.00041369,18]
[342867277,1732189865458,-500.0,0.00041369,18]
[342867278,1732189865467,-500.0,0.00041369,18]
[342867279,1732189865476,-500.0,0.00041369,18]
[342867280,1732189865485,-2015.86,0.00041369,18]
[342867281,1732189865495,-694.68,0.00041369,18]
[342867282,1732189865504,-1813.06,0.00041369,18]
[342867283,1732189865514,-500.0,0.00041369,18]
[342867284,1732189865524,-500.0,0.00041369,18]
[342867285,1732189865533,-500.0,0.00041369,18]
[342867286,1732189865543,-500.0,0.00041369,18]
[342867287,1732189865552,-500.0,0.00041369,18]
[342867288,1732189865562,-797.51,0.00041369,18]
[342867289,1732189865571,-543.27,0.00041369,18]
[342867290,1732189865581,-937.55,0.00041369,18]
[342867291,1732189865591,-3170.76,0.00041369,18]
[342867292,1732189865600,-1192.35,0.00041369,18]
[342867293,1732189865609,-500.0,0.00041369,18]
[342867294,1732189865619,-1103.43,0.00041369,18]
[342867295,1732189865628,-9435.5,0.00041369,18]
[342867296,1732189865637,-1179.58,0.00041369,18]
[342867297,1732189865647,-500.0,0.00041369,18]
[342867298,1732189865658,-500.0,0.00041369,18]
[342867299,1732189865667,-500.0,0.00041369,18]
[342867300,1732189865676,-500.0,0.00041369,18]
[342867301,1732189865686,-1764.42,0.00041369,18]
[342867302,1732189865695,-586.45,0.00041369,18]
[342867303,1732189865704,-773.7,0.00041369,18]
[342867304,1732189865714,-500.0,0.00041369,18]
[342867305,1732189865723,-500.0,0.00041369,18]
[342867306,1732189865732,-500.0,0.00041369,18]
[342867307,1732189865741,-500.0,0.00041369,18]
[342867308,1732189865750,-1495.41,0.00041369,18]
[342867309,1732189865759,-1133.17,0.00041369,18]
[342867310,1732189865770,-787.81,0.00041369,18]
[342867311,1732189865780,-1323.98,0.00041369,18]
[342867312,1732189865789,-538.92,0.00041369,18]
[342867313,1732189865799,-500.0,0.00041369,18]
[342867314,1732189865808,-937.31,0.00041369,18]
[342867315,1732189865817,-4866.44,0.00041369,18]
[342867316,1732189865826,-659.42,0.00041369,18]
[342867317,1732189865836,-1543.38,0.00041369,18]
[342867318,1732189865845,-790.07,0.00041369,18]
[342867319,1732189865854,-500.0,0.00041369,18]
[342867320,1732189865863,-1101.6,0.00041369,18]
[342867321,1732189865872,-662.82,0.00041369,18]
[342867322,1732189865882,-703.56,0.00041369,18]
[342867323,1732189865891,-1591.73,0.00041369,18]
[342867324,1732189865902,-1079.68,0.00041369,18]
[342867325,1732189865917,-500.0,0.00041369,18]
[342867326,1732189865932,-1970.44,0.00041369,18]
[342867327,1732189865941,-752.44,0.00041369,18]
[342867328,1732189865950,-500.0,0.00041369,18]
[342867329,1732189865961,-1597.36,0.00041369,18]
[342867330,1732189865971,-4038.96,0.00041369,18]
[342867331,1732189865980,-1059.49,0.00041369,18]
[342867332,1732189865990,-1420.59,0.00041369,18]
[342867333,1732189865999,-500.0,0.00041369,18]
[342867334,1732189866009,-1529.18,0.00041369,18]
[342867335,1732189866018,-500.0,0.00041369,18]
[342867336,1732189866028,-500.0,0.00041369,18]
[342867337,1732189866037,-1569.92,0.00041369,18]
[342867338,1732189866046,-826.38,0.00041369,18]
[342867339,1732189866055,-500.0,0.00041369,18]
[342867340,1732189866065,-500.0,0.00041369,18]
[342867341,1732189866076,-1184.5,0.00041369,18]
[342867342,1732189866085,-500.0,0.00041369,18]
[342867343,1732189866094,-1209.16,0.00041369,18]
[342867344,1732189866103,-1076.27,0.00041369,18]
[342867345,1732189866113,-500.0,0.00041369,18]
[342867346,1732189866123,-500.0,0.00041369,18]
[342867347,1732189866133,-500.0,0.00041369,18]
[342867348,1732189866143,-1341.22,0.00041369,18]
[342867349,1732189866153,-664.08,0.00041369,18]
[342867350,1732189866163,-500.0,0.00041369,18]
[342867351,1732189866172,-615.49,0.00041369,18]
[342867352,1732189866182,-500.0,0.00041369,18]
[342867353,1732189866192,-1188.59,0.00041369,18]
[342867354,1732189866202,-500.0,0.00041369,18]
[342867355,1732189866212,-917.88,0.00041369,18]
[342867356,1732189866223,-734.45,0.00041369,18]
[342867357,1732189866233,-500.0,0.00041369,18]
[342867358,1732189866244,-2822.12,0.00041369,18]
[342867359,1732189866254,-1764.84,0.00041369,18]
[342867360,1732189866264,-500.0,0.00041369,18]
[342867361,1732189866273,-507.48,0.00041369,18]
[342867362,1732189866283,-1206.05,0.00041369,18]
[342867363,1732189866293,-500.0,0.00041369,18]
[342867364,1732189866303,-2277.01,0.00041369,18]
[342867365,1732189866313,-823.66,0.00041369,18]
[342867366,1732189866323,-3462.12,0.00041369,18]
[342867367,1732189866333,-500.0,0.00041369,18]
[342867368,1732189866343,-907.46,0.00041369,18]
[342867369,1732189866352,-500.0,0.00041369,18]
[342867370,1732189866363,-500.0,0.00041369,18]
[342867371,1732189866372,-6306.57,0.00041369,18]
[342867372,1732189866383,-500.0,0.00041369,18]
[342867373,1732189866392,-2110.0,0.00041369,30]
[342867374,1732189866407,-1975.07,0.00041369,18]
[342867375,1732189866416,-746.1,0.00041369,18]
[342867376,1732189866426,-500.0,0.00041369,18]
[342867377,1732189866437,-572.85,0.00041369,18]
[342867378,1732189866447,-500.0,0.00041369,18]
[342867379,1732189866457,-2257.63,0.00041369,18]
[342867380,1732189866468,-1401.14,0.00041369,18]
[342867381,1732189866478,-1439.68,0.00041369,18]
[342867382,1732189866488,-500.0,0.00041369,18]
[342867383,1732189866498,-500.0,0.00041369,18]
[342867384,1732189866508,-763.56,0.00041369,18]
[342867385,1732189866518,-1578.75,0.00041369,18]
[342867386,1732189866528,-500.0,0.00041369,18]
[342867387,1732189866539,-801.82,0.00041369,18]
[342867388,1732189866549,-500.0,0.00041369,18]
[342867389,1732189866560,-1361.49,0.00041369,18]
[342867390,1732189866570,-1182.62,0.00041369,18]
[342867391,1732189866580,-500.0,0.00041369,18]
[342867392,1732189866590,-500.0,0.00041369,18]
[342867393,1732189866600,-500.0,0.00041369,18]
[342867394,1732189866610,-1752.72918,0.00041369,14]
[342867395,1732189866620,-1752.72918,0.00041369,14]
[342867396,1732189866629,-912.961485,0.00041369,14]
[342867397,1732189866639,-1752.72918,0.00041369,14]
[342867398,1732189866648,-912.961485,0.00041369,14]
[342867399,1732189866659,-500.0,0.00041369,18]
[342867400,1732189866669,-912.961485,0.00041369,14]
[342867401,1732189866678,-612.15,0.00041369,18]
[342867402,1732189866687,-500.0,0.00041369,18]
[342867403,1732189866697,-1354.02,0.00041369,18]
[342867404,1732189866707,-500.0,0.00041369,18]
[342867405,1732189866716,-500.0,0.00041369,18]
[342867406,1732189866726,-649.76,0.00041369,18]
[342867407,1732189866735,-1306.87,0.00041369,18]
[342867408,1732189866744,-844.16,0.00041369,18]
[342867409,1732189866754,-2926.14,0.00041369,18]
[342867410,1732189866763,-1752.72918,0.00041369,14]
[342867411,1732189866773,-500.0,0.00041369,18]
[342867412,1732189866782,-1752.72918,0.00041369,14]
[342867413,1732189866792,-5284.91,0.00041369,18]
[342867414,1732189866802,-1752.72918,0.00041369,14]
[342867415,1732189866812,-912.961485,0.00041369,14]
[342867416,1732189866822,-912.961485,0.00041369,14]
[342867417,1732189866832,-504.76425071,0.00041369,18]
[342867418,1732189866842,-912.961485,0.00041369,14]
[342867419,1732189866852,-500.0,0.00041369,18]
[342867420,1732189866862,-500.0,0.00041369,18]
[342867421,1732189866872,-34121.91,0.00041369,18]
[342867423,1732189866881,-699.9,0.00041369,18]
[342867424,1732189866891,-1595.91,0.00041369,18]
[342867425,1732189866902,-1071.22,0.00041369,18]
[342867426,1732189866912,-518.44,0.00041369,18]
[342867427,1732189866926,-500.0,0.00041369,18]
[342867428,1732189866936,-500.0,0.00041369,18]
[342867429,1732189866945,-4003.3,0.00041369,18]
[342867430,1732189866956,-1341.46,0.00041369,18]
[342867431,1732189866966,-1733.74,0.00041369,18]
[342867432,1732189866977,-500.0,0.00041369,18]
[342867433,1732189866986,-791.93,0.00041369,18]
[342867434,1732189866997,-2557.99,0.00041369,18]
[342867435,1732189867010,-1249.9,0.00041369,18]
[342867436,1732189867021,-500.0,0.00041369,18]
[342867437,1732189867031,-1731.38,0.00041369,18]
[342867438,1732189867041,-519.33,0.00041369,18]
[342867439,1732189867051,-529.13,0.00041369,18]
[342867440,1732189867061,-1362.79,0.00041369,18]
[342867441,1732189867071,-500.0,0.00041369,18]
[342867442,1732189867081,-500.0,0.00041369,18]
[342867443,1732189867091,-1241.29,0.00041369,18]
[342867444,1732189867101,-2915.23,0.00041369,18]
[342867445,1732189867111,-3244.13,0.00041369,18]
[342867446,1732189867124,-500.0,0.00041369,18]
[342867447,1732189867134,-2554.53,0.00041369,18]
[342867448,1732189867143,-582.9,0.00041369,18]
[342867449,1732189867155,-550.08,0.00041369,18]
[342867450,1732189867165,-500.0,0.00041369,18]
[342867451,1732189867175,-501.76771401,0.00041369,18]
[342867452,1732189867185,-500.0,0.00041369,18]
[342867453,1732189867195,-651.52,0.00041369,18]
[342867454,1732189867205,-698.96,0.00041369,18]
[342867455,1732189867214,-3881.63,0.00041369,18]
[342867456,1732189867224,-500.0,0.00041369,18]
[342867457,1732189867234,-1582.74,0.00041369,18]
[342867458,1732189867243,-500.0,0.00041369,18]
[342867459,1732189867253,-1637.99,0.00041369,120]
[342867460,1732189867263,-1871.1,0.00041369,18]
[342867461,1732189867273,-500.0,0.00041369,18]
[342867462,1732189867283,-1098.21,0.00041369,18]
[342867463,1732189867292,-2484.53,0.00041369,18]
[342867464,1732189867302,-2436.73,0.00041369,18]
[342867465,1732189867312,-500.0,0.00041369,18]
[342867466,1732189867322,-500.0,0.00041369,18]
[342867467,1732189867332,-1567.85,0.00041369,18]
[342867468,1732189867342,-1768.68,0.00041369,18]
[342867469,1732189867352,-1447.08,0.00041369,18]
[342867470,1732189867363,-500.0,0.00041369,18]
[342867471,1732189867373,-572.44,0.00041369,18]
[342867472,1732189867383,-4586.56,0.00041369,18]
[342867473,1732189867392,-1620.15,0.00041369,18]
[342867474,1732189867403,-500.0,0.00041369,18]
[342867475,1732189867413,-619.11,0.00041369,18]
[342867476,1732189867423,-472.8,0.00041369,18]
[342867477,1732189867432,-500.0,0.00041369,18]
[342867478,1732189867442,-500.0,0.00041369,18]
[342867479,1732189867452,-513.87,0.00041369,18]
[342867480,1732189867461,-500.0,0.00041369,18]
[342867481,1732189867470,-4020.32,0.00041369,18]
[342867482,1732189867480,-500.0,0.00041369,18]
[342867483,1732189867490,-500.0,0.00041369,18]
[342867484,1732189867499,-1565.83,0.00041369,18]
[342867485,1732189867509,-593.97,0.00041369,18]
[342867486,1732189867518,-596.12,0.00041369,18]
[342867487,1732189867528,-4712.74,0.00041369,18]
[342867488,1732189867537,-500.0,0.00041369,18]
[342867489,1732189867547,-1148.91,0.00041369,18]
[342867490,1732189867556,-2032.25,0.00041369,18]
[342867491,1732189867566,-500.0,0.00041369,18]
[342867492,1732189867575,-544.54,0.00041369,18]
[342867493,1732189867585,-500.0,0.00041369,18]
[342867494,1732189867595,-613.43,0.00041369,18]
[342867495,1732189867605,-500.0,0.00041369,18]
[342867496,1732189867616,-500.0,0.00041369,18]
[342867497,1732189867625,-500.0,0.00041369,18]
[342867498,1732189867636,-500.0,0.00041369,18]
[342867499,1732189867645,-569.51667474,0.00041369,18]
[342867500,1732189867657,-7872.71,0.00041369,18]
[342867501,1732189867667,-2327.69,0.00041369,18]
[342867502,1732189867677,-500.0,0.00041369,18]
[342867503,1732189867688,-500.0,0.00041369,18]
[342867504,1732189867698,-3018.48,0.00041369,18]
[342867505,1732189867708,-500.0,0.00041369,18]
[342867506,1732189867718,-500.0,0.00041369,18]
[342867507,1732189867728,-500.0,0.00041369,18]
[342867508,1732189867738,-564.49,0.00041369,18]
[342867509,1732189867748,-5196.4,0.00041369,18]
[342867510,1732189867758,-1276.87,0.00041369,18]
[342867511,1732189867769,-7206.61,0.00041369,18]
[342867512,1732189867779,-712.38,0.00041369,18]
[342867513,1732189867788,-500.0,0.00041369,18]
[342867514,1732189867798,-500.0,0.00041369,18]
[342867515,1732189867809,-1681.4,0.00041369,18]
[342867516,1732189867819,-500.0,0.00041369,18]
[342867517,1732189867829,-3627.02,0.00041369,18]
[342867518,1732189867839,-500.0,0.00041369,18]
[342867519,1732189867849,-1660.62,0.00041369,18]
[342867520,1732189867859,-500.0,0.00041369,18]
[342867521,1732189867869,-1806.44,0.00041369,18]
[342867522,1732189867879,-500.0,0.00041369,18]
[342867523,1732189867888,-500.0,0.00041369,18]
[342867524,1732189867899,-500.0,0.00041369,18]
[342867525,1732189867910,-11747.3,0.00041369,18]
[342867526,1732189867921,-500.0,0.00041369,18]
[342867527,1732189867932,-1018.58,0.00041369,18]
[342867528,1732189867942,-500.0,0.00041369,18]
[342867529,1732189867953,-533.28,0.00041369,18]
[342867530,1732189867963,-927.21,0.00041369,18]
[342867531,1732189867973,-500.0,0.00041369,18]
[342867532,1732189867983,-1442.66,0.00041369,18]
[342867533,1732189867993,-931.25,0.00041369,18]
[342867534,1732189868005,-500.0,0.00041369,18]
[342867535,1732189868015,-500.0,0.00041369,18]
[342867536,1732189868025,-1758.3,0.00041369,18]
[342867537,1732189868035,-1417.72,0.00041369,18]
[342867538,1732189868044,-2319.62,0.00041369,18]
[342867539,1732189868054,-11933.23,0.00041369,18]
[342867540,1732189868064,-500.0,0.00041369,18]
[342867541,1732189868073,-532.75,0.00041369,18]
[342867542,1732189868083,-766.76,0.00041369,18]
[342867543,1732189868092,-930.37,0.00041369,18]
[342867544,1732189868102,-500.0,0.00041369,18]
[342867545,1732189868111,-500.0,0.00041369,18]
[342867546,1732189868123,-1228.47,0.00041369,7]
[342867547,1732189868132,-500.0,0.00041369,18]
[342867548,1732189868142,-700.0,0.00041369,18]
[342867549,1732189868153,-997.29,0.00041369,18]
[342867550,1732189868163,-500.0,0.00041369,18]
[342867551,1732189868173,-1013.23,0.00041369,18]
[342867552,1732189868183,-500.0,0.00041369,18]
[342867553,1732189868193,-675.24,0.00041369,18]
[342867554,1732189868202,-500.0,0.00041369,18]
[342867555,1732189868212,-4020.28,0.00041369,18]
[342867556,1732189868223,-500.0,0.00041369,18]
[342867557,1732189868233,-500.0,0.00041369,18]
[342867558,1732189868243,-500.0,0.00041369,18]
[342867559,1732189868253,-13202.45,0.00041369,18]
[342867560,1732189868263,-500.0,0.00041369,18]
[342867561,1732189868273,-1186.15,0.00041369,18]
[342867562,1732189868282,-500.0,0.00041369,18]
[342867563,1732189868291,-545.72,0.00041369,18]
[342867564,1732189868302,-946.9,0.00041369,18]
[342867565,1732189868314,-2666.59,0.00041369,18]
[342867566,1732189868324,-719.93,0.00041369,18]
[342867567,1732189868334,-500.0,0.00041369,18]
[342867568,1732189868344,-500.0,0.00041369,18]
[342867569,1732189868675,-2000.0,0.00041369,7]
[342867570,1732189868698,-877.93,0.00041369,18]
[342867571,1732189868707,-1376.18,0.00041369,18]
[342867572,1732189868717,-500.0,0.00041369,18]
[342867573,1732189868727,-500.0,0.00041369,18]
[342867574,1732189868736,-500.0,0.00041369,18]
[342867575,1732189868746,-500.0,0.00041369,18]
[342867576,1732189868755,-500.0,0.00041369,18]
[342867577,1732189868764,-14468.44,0.00041369,18]
[342867578,1732189868774,-200.0,0.00041369,7]
[342867579,1732189868783,-5787.83,0.00041369,18]
[342867580,1732189868793,-500.0,0.00041369,18]
[342867581,1732189868802,-500.0,0.00041369,18]
[342867582,1732189868811,-697.07,0.00041369,18]
[342867583,1732189868821,-805.41,0.00041369,18]
[342867584,1732189868831,-500.0,0.00041369,18]
[342867585,1732189868840,-3418.39,0.00041369,18]
[342867586,1732189868850,-3873.91,0.00041369,18]
[342867587,1732189868859,-500.0,0.00041369,18]
[342867588,1732189868869,-500.0,0.00041369,18]
[342867589,1732189868878,-500.0,0.00041369,18]
[342867590,1732189868888,-3451.68,0.00041369,18]
[342867591,1732189868897,-4908.1,0.00041369,18]
[342867592,1732189868908,-500.0,0.00041369,18]
[342867593,1732189868918,-500.0,0.00041369,18]
[342867594,1732189868930,-500.0,0.00041369,18]
[342867595,1732189868940,-500.0,0.00041369,18]
[342867596,1732189868950,-500.0,0.00041369,18]
[342867597,1732189868960,-3954.94,0.00041369,18]
[342867598,1732189868970,-2609.31,0.00041369,18]
[342867599,1732189868980,-1172.56,0.00041369,18]
[342867600,1732189868990,-151.0,0.00041369,14]
[342867601,1732189869002,-289.675478,0.00041369,14]
[342867602,1732189869011,-500.0,0.00041369,18]
[342867603,1732189869021,-500.0,0.00041369,18]
[342867604,1732189869030,-810.04,0.00041369,18]
[342867605,1732189869040,-500.0,0.00041369,18]
[342867606,1732189869050,-1027.22,0.00041369,18]
[342867607,1732189869060,-500.0,0.00041369,18]
[342867608,1732189869070,-500.0,0.00041369,18]
[342867609,1732189869080,-500.0,0.00041369,18]
[342867610,1732189869089,-2504.88,0.00041369,18]
[342867611,1732189869099,-603.75,0.00041369,18]
[342867612,1732189869109,-1764.73,0.00041369,18]
[342867613,1732189869119,-3735.74,0.00041369,18]
[342867614,1732189869129,-748.77,0.00041369,18]
[342867615,1732189869139,-1623.0,0.00041369,18]
[342867616,1732189869148,-1038.75,0.00041369,18]
[342867617,1732189869159,-2696.16,0.00041369,18]
[342867618,1732189869169,-3232.89,0.00041369,18]
[342867619,1732189869179,-500.0,0.00041369,18]
[342867620,1732189869189,-555.02,0.00041369,18]
[342867621,1732189869199,-500.0,0.00041369,18]
[342867622,1732189869208,-5189.2817827,0.00041372,2]
[342867623,1732189869219,-4049.647119,0.00041372,2]
[342867624,1732189869229,-300.0,0.000414,120]
[342867625,1732189869239,-150.0,0.000414,2]
[342867626,1732189869248,-4000.0,0.00041416,35]
[342867627,1732189869258,-957.32651,0.00041488,30]
[342867628,1732189869268,-12188.97944185,0.00041538,15]
[342867629,1732189869279,-3999.69987359,0.00041538,15]
[342867630,1732189869288,-567.192,0.00041603,2]
[342867631,1732189869298,-1256.0,0.00041603,2]
[342867632,1732189869307,-566.366,0.00041603,2]
[342867633,1732189869317,-1927.0,0.00041603,2]
[342867634,1732189869327,-815.0,0.00041603,2]
[342867635,1732189869336,-1182.772,0.00041603,2]
[342867636,1732189869346,-1178.149,0.00041603,2]
[342867637,1732189869356,-5940.0,0.00041603,2]
[342867638,1732189869365,-1162.0,0.00041603,2]
[342867639,1732189869375,-13657.0,0.00041603,2]
[342867640,1732189869385,-151.337,0.00041603,2]
[342867641,1732189869395,-161.592643,0.00041616,18]
[342867642,1732189869406,-62314.0,0.00041616,120]
[342867643,1732189869418,-500.0,0.00041621,2]
[342867644,1732189869430,-500.0,0.00041624,120]
[342867645,1732189869441,-1752.72918,0.00041642,14]
[342867646,1732189869451,-1752.72918,0.00041642,14]
[342867647,1732189869461,-696.6,0.00041643,18]
[342867648,1732189869471,-500.0,0.00041643,18]
[342867649,1732189869481,-500.0,0.00041643,18]
[342867650,1732189869491,-500.0,0.00041643,18]
[342867651,1732189869501,-500.0,0.00041643,18]
[342867652,1732189869510,-500.0,0.00041643,18]
[342867653,1732189869520,-500.0,0.00041643,18]
[342867654,1732189869530,-253.42628766,0.00041643,18]
[342867655,1732189869539,-500.0,0.00041643,18]
[342867656,1732189869550,-500.0,0.00041643,18]
[342867657,1732189869559,-500.0,0.00041643,18]
[342867658,1732189869569,-500.0,0.00041643,18]
[342867659,1732189869579,-500.0,0.00041643,18]
[342867660,1732189869588,-500.0,0.00041643,18]
[342867661,1732189869598,-500.0,0.00041643,18]
[342867662,1732189869607,-500.0,0.00041643,18]
[342867663,1732189869617,-893.89,0.00041643,18]
[342867664,1732189869626,-500.0,0.00041643,18]
[342867665,1732189869635,-500.0,0.00041643,18]
[342867666,1732189869645,-500.0,0.00041643,18]
[342867667,1732189869657,-566.69,0.00041643,18]
[342867668,1732189869667,-731.09,0.00041643,18]
[342867669,1732189869676,-501.8,0.00041643,18]
[342867670,1732189869686,-500.0,0.00041643,18]
[342867671,1732189869695,-500.0,0.00041643,18]
[342867672,1732189869704,-1344.138509,0.00041643,18]
[342867673,1732189869714,-224.156426,0.00041643,18]
[342867674,1732189869725,-853.24,0.00041643,18]
[342867675,1732189869735,-500.0,0.00041643,18]
[342867676,1732189869745,-1293.78,0.00041643,18]
[342867677,1732189869756,-500.0,0.00041643,18]
[342867678,1732189869766,-500.0,0.00041643,18]
[342867679,1732189869776,-500.0,0.00041643,18]
[342867680,1732189869786,-500.0,0.00041643,18]
[342867681,1732189869795,-500.0,0.00041643,18]
[342867682,1732189869804,-649.49,0.00041643,18]
[342867683,1732189869813,-500.0,0.00041643,18]
[342867684,1732189869823,-564.08,0.00041643,18]
[342867685,1732189869832,-807.98,0.00041643,18]
[342867686,1732189869842,-500.0,0.00041643,18]
[342867687,1732189869853,-500.0,0.00041643,18]
[342867688,1732189869862,-500.0,0.00041643,18]
[342867689,1732189869871,-957.5,0.00041643,18]
[342867690,1732189869881,-500.0,0.00041643,18]
[342867691,1732189869890,-500.0,0.00041643,18]
[342867692,1732189869900,-776.01,0.00041643,18]
[342867693,1732189869910,-534.76,0.00041643,18]
[342867694,1732189869920,-723.01,0.00041643,18]
[342867695,1732189869932,-500.0,0.00041643,18]
[342867696,1732189869941,-500.0,0.00041643,18]
[342867697,1732189869952,-1227.8,0.00041643,18]
[342867698,1732189869962,-500.0,0.00041643,18]
[342867699,1732189869971,-500.0,0.00041643,18]
[342867700,1732189869981,-1614.75,0.00041643,18]
[342867701,1732189869991,-1559.84,0.00041643,18]
[342867702,1732189870002,-500.0,0.00041643,18]
[342867703,1732189870013,-500.0,0.00041643,18]
[342867704,1732189870022,-500.0,0.00041643,18]
[342867705,1732189870031,-1779.08,0.00041643,18]
[342867706,1732189870040,-500.0,0.00041643,18]
[342867707,1732189870049,-500.0,0.00041643,18]
[342867708,1732189870060,-735.36,0.00041643,18]
[342867709,1732189870070,-1466.69,0.00041643,18]
[342867710,1732189870080,-500.0,0.00041643,18]
[342867711,1732189870089,-500.0,0.00041643,18]
[342867712,1732189870100,-541.82,0.00041643,18]
[342867713,1732189870110,-500.0,0.00041643,18]
[342867714,1732189870119,-1079.56,0.00041643,18]
[342867715,1732189870128,-500.0,0.00041643,18]
[342867716,1732189870137,-723.81,0.00041643,18]
[342867717,1732189870147,-502.99,0.00041643,18]
[342867718,1732189870156,-500.0,0.00041643,18]
[342867719,1732189870165,-500.0,0.00041643,18]
[342867720,1732189870176,-500.0,0.00041643,18]
[342867721,1732189870185,-455.05907479,0.00041643,18]
[342867722,1732189870195,-813.37,0.00041643,18]
[342867723,1732189870205,-2948.74,0.00041643,18]
[342867724,1732189870215,-428.99332381,0.00041643,18]
[342867725,1732189870225,-500.0,0.00041643,18]
[342867726,1732189870235,-535.23,0.00041643,18]
[342867727,1732189870244,-500.0,0.00041643,18]
[342867728,1732189870254,-500.0,0.00041643,18]
[342867729,1732189870264,-566.09,0.00041643,18]
[342867730,1732189870274,-500.0,0.00041643,18]
[342867731,1732189870284,-500.0,0.00041643,18]
[342867732,1732189870293,-500.0,0.00041643,18]
[342867733,1732189870303,-609.54,0.00041643,18]
[342867734,1732189870313,-1065.06,0.00041643,18]
[342867735,1732189870323,-2810.44,0.00041643,18]
[342867736,1732189870333,-850.0,0.00041643,120]
[342867737,1732189870344,-500.0,0.00041643,18]
[342867738,1732189870353,-632.79,0.00041643,18]
[342867739,1732189870363,-702.2,0.00041643,18]
[342867740,1732189870373,-500.0,0.00041643,18]
[342867741,1732189870383,-500.0,0.00041643,18]
[342867742,1732189870392,-467.43988694,0.00041643,18]
[342867743,1732189870402,-500.0,0.00041643,18]
[342867744,1732189870414,-2169.86,0.00041643,18]
[342867745,1732189870423,-500.0,0.00041643,18]
[342867746,1732189870433,-500.0,0.00041643,18]
[342867747,1732189870443,-500.0,0.00041643,18]
[342867748,1732189870454,-500.0,0.00041643,18]
[342867749,1732189870463,-500.0,0.00041643,18]
[342867750,1732189870474,-500.0,0.00041643,18]
[342867751,1732189870484,-500.0,0.00041643,18]
[342867752,1732189870494,-924.54,0.00041643,18]
[342867753,1732189870503,-500.0,0.00041643,18]
[342867754,1732189870513,-885.13,0.00041643,18]
[342867755,1732189870523,-500.0,0.00041643,18]
[342867756,1732189870532,-500.0,0.00041643,18]